Workbook

Sheet Intro
A1: 0 | C1: Presentation of data from 6-month cash flows | L1: East Electric Company Ltd. Boston | P1: Do you need free browsing the program file?
D2: Level 0 ß | E2: Level 3 | F2: This is the new | G2: GLOBAL STEEL D.O.O. | K2: DBA: | V2: =V3/T3 -> 
C3: SALES | D3: Project | E3: Current | F3: registrated Co.: | K3: Represented by local outsourcing east electric company Ltd, Bulgaria | V3: 1
C4: Homes | D4: =BUDGET!C33 -> 33717600 | E4: =BUDGET!C40 -> 0 | G4: Prefabricated Buildings and Halls steel structures
C5: Halls | D5: =BUDGET!C34 -> 61152000 | E5: =BUDGET!C40 -> 0
C6: TOTAL: | D6: =BUDGET!C32 -> 94869600 | E6: =BUDGET!C40+1 -> 1 | G6: primarily engaged in the production and installation of steel structures | P6: =TODAY() -> 2022-12-28
C7: Comparison of the project's with current operational data | G7: ←Level 5 → Risk assessment and management. Go to Bayes Theorem.
A8: Click the picture  to increase it | C8: COSTS | D8: Project | E8: Current | G8: ←Level 4 → Sensitivity analysis | M8: ←Zoom 100
C9: Variable costs | D9: =BUDGET!C46 -> 584600 | E9: =BUDGET!C42 -> 0 | G9: ←Level 3 → Profitability analysis & decisions | L9: Part 2 | M9: ↑ These 3 Levels are subject to analysis and management during the loan life.
C10: Fixed costs | D10: =BUDGET!C52 -> 8943292.736 | E10: =BUDGET!C43 -> 0 | G10: ←Level 2 Budget | L10: Part 1 | M10: â Next 3 Levels are subject to review for decision making for project financing.
C11: TOTAL: | D11: =BUDGET!C16 -> 40699841.98 | E11: =BUDGET!C41+1 -> 1 | G11: ←Level 1 Capital Goods and Services | N11: Select Zoom 100 if Resolution of your display is lesser than 1600 x 900.
C12: Sales / Costs | D12: =D6/D11 -> 2.330957453 | E12: =E6+1/E11+1 -> 3 | G12: ←Level 0 Basic data, invariant for this Project
C13: Marketing / RM
A14: This information shows all the time: ① Are the project data correct, | H14: This Level Go dowm | K14: Decision Analysis | N14: Online Cash Flow Control
A15: ② Is there good management, ③ The risk assessment and management | L15: Demand is rising | N15: All time during the loan life
A16: This sector presents Level 3 data for comparison with the base information of Level 0 | F16: Click the image to reveal the final results | J16: 1 year | L16: Financial modeling ↗
B17: Overall probability of a bad event - | J17: Built-up materials | M17: p.Yr
B18: lost profits due to lack of risk assessment. | J18: Homes | L18: =M18/M20 -> 0.3103448276 | M18: =Q34 -> 36360
E19: Revenue increase due to beter distribution, TOTAL: | F19: 7-Yr Option | J19: Halls | L19: =100%-L18 -> 0.6896551724 | M19: =Q35 -> 80800
B20: The greenhouse complex | E20: Loans A + B - D Investment, TOTAL: | M20: =M18+M19 -> 117160 | N20: Feedback from Level 5 to Level 0
A21: Creditor  | B21: Project Finance
A22: Export Credit Insurance | C22: Financial Modeling | F22: DDP (Delivered Duty Paid)
A23: Marketing | C23: Business Plan East Electric Company | F23: The seller is responsible for arranging carriage and delivering the goods at the named place, cleared for import and all applicable taxes and duties paid (e.g. VAT, GST)
A24: Insurer | C24: Risk Assessment Brothers Global Ltd. | F24: In this country the import clearance procedures are not complex and bureaucratic, but In case there is a problem, the user is obliged to solve it.
D25: Solar power supplier - Own division
D26: Infrastructure. Solar power supplier | F26: The closed company RIPING DOO, own equipment for hall construction, delivered from the USA and used for 16 years, will be fetched to the Project Company.
A27: Material products: | D27: Intellectual products: | F27: This, as well as the income from working with these machines, are not presented in the Cash Flow of the Proforma Budgeting on Level 3.
A28: Buildings ← sq. m / | D28: ← Risk assessment & management | F28: The total market price of these machines is now $ 800,000.
A29: Halls ← sq. m / | D29: ← Online cash-flow control system | M29: ¯ Basic unchangeable values for transfer to upper Level 1 Ö
A30: By-products of buildings & halls ← | D30: ← History of sales and costs | H30: FINANCIAL STARTUP DATA
A31: Numbers newly introduced
A32: The attached color and image visualizations in all worksheets are designed for faster and easier perception of figures and formulas, as well as for their long-term memorization when financing the project. | M32: 20 | Q32: Production | R32: Price
F33: MATERIALS | G33: 2001-UBM-240: | H33: Income - Sales: | I33: Built-up area | K33: p.Mo ↓ | L33: Jan, Feb, Mar | M33: Apr, May, Jun, Jul, Aug, Sep | P33: Oct, Nov, Dec | Q33: per Yr | R33: Price | S33: ↓ Sales
F34: Loan - for 3 Mos: | G34: 2500000 | H34: Homes construction | I34: 180 | K34: =I34*M32 -> 3600 | L34: =K34*3-K34*3*20% -> 8640 | M34: =K34*5 -> 18000 | P34: =K34*3-K34*3*10% -> 9720 | Q34: =L34+M34+P34 -> 36360 | R34: 140 | S34: =Q34*R34 -> 5090400
F35: Homes | G35: 2000-UBM-120: | H35: Halls construction | I35: 400 | K35: =I35*M32 -> 8000 | L35: =K35*3-K35*3*20% -> 19200 | M35: =K35*5 -> 40000 | P35: =K35*3-K35*3*10% -> 21600 | Q35: =L35+M35+P35 -> 80800 | R35: 120 | S35: =Q35*R35 -> 9696000
F36: =S39 -> 756000 | G36: 1187500 | H36: Homes - Sales 1st half Yr: | I36: =(L34+K34*3)*R34 -> 2721600 | K36: 2nd half Yr: | L36: =(K34*3+P34)*R34 -> 2872800 | P36: 1 Yr TOTAL: | Q36: =Q34+Q35 -> 117160 | S36: =S34+S35 -> 14786400
F37: Halls | G37: Flat Panel: | H37: Halls - Sales 1st half Yr: | I37: =(L35+K35*3)*R35 -> 5184000 | K37: 2nd half Yr: | L37: =(K35*3+P35)*R35 -> 5472000
F38: =S41 -> 1200000 | G38: 687500 | H38: Cost - Materials: | I38: =I33 -> Built-up area | K38: p.Mo ↓ | L38: 3 | R38: Price | S38: ↓ Buy
F39: Import - Export | G39: For polyuretan: | H39: Homes materials 1m2 | I39: =I34 -> 180 | K39: =I39*M32 -> 3600 | L39: =K39*L38 -> 10800 | R39: 70 | S39: =L39*R39 -> 756000
F40: TOTAL: | G40: 312500 | H40: 33.5 | I40: =H40*I39/1000 -> 6.03 | K40: =I40*M32 -> 120.6 | L40: =K40*L38 -> 361.8
F41: =F36+F38 -> 1956000 | G41: Fire Protection: | H41: Halls material 1m2 | I41: =I35 -> 400 | K41: =I41*M32 -> 8000 | L41: =K41*L38 -> 24000 | R41: 50 | S41: =L41*R41 -> 1200000
F42: TECHNOLOGY | G42: 437500 | H42: 46 | I42: =H42*I41/1000 -> 18.4 | K42: =I42*M32 -> 368 | L42: =K42*L38 -> 1104 | R42: 1 Yr TOTAL: | S42: =S39+S41 -> 1956000
A43: For Developer's use only | F43: STARTUP | G43: =G34+G36+G38+G40+G42 -> 5125000 | H43: →Source of digital data
A44: For Developer's use only | F44: SUPPORT | G44: Homes and Halls | R44: ↗
F45: =G46*F46 -> 1274580 | G45: < pictures > | H45: These characters are on base data and are links to Level 1 | R45: ↗
A46: Training - disassembly and assembly of machines for transport and operation: | F46: 0.18 | G46: =F41+G43 -> 7081000 | H46: Data entered from external sources. | R46: ↗
C47: MATERIALS and supply SubTOTAL: | F47: =G46*F46 -> 1274580 | G47: =G48*I47 -> 1253337 | H47: Own funds (if required) | I47: 0.15 | K47: â Basic unchangeable values for transfer to upper | Q47: Level 1 ↗ | R47: Duty | S47: VAT
A48: INFLOW DATA WORKING PANEL FOR THE BASE | D48: Level 0 | F48: Loan amount TOTAL: | G48: =G46+F47 -> 8355580 | H48: Solar Energy | I48: Design data | K48: STAFF - Start Salaries | P48: Imp. values + LOCAL COSTS | R48: 0.025 | S48: 0.2
H49: 1. Solar Roof and power home with: | K49: Structure and salaries of employees | P49: Import Duty: | Q49: Machines | R49: =G43*R48 -> 128125 | S49: =G43*S48 -> 1025000
H50: a fully integrated solar and energy | L50: POSITION | Q50: Materials | R50: =F41*R48 -> 48900 | S50: =F41*S48 -> 391200
H51: storage system. | K51: Nr. | L51: ADMINISTRATION | N51: $ | O51: $ p.Mo | P51: Materials | Q51: Sub TOTAL(s) | R51: =R49+R50 -> 177025 | S51: =S49+S50 -> 1416200
K52: 1 | L52: CEO | N52: 3000 | O52: =K52*N52 -> 3000 | P52: Local country customs transport and storage: | S52: 30000
K53: 1 | L53: Technical director | N53: 2000 | O53: =K53*N53 -> 2000 | P53: Local administration Permits & Reconstruction: | S53: 50000
K54: 1 | L54: Secretary | N54: 1000 | O54: =K54*N54 -> 1000 | P54: Local country costs TOTAL: | R54: =R51+S54 -> 257025 | S54: =S52+S53 -> 80000
K55: 2 | L55: Bookkeeper | N55: 2000 | O55: 4000 | P55: Loan application - | R55: Exporter / Developer
K56: 3 | L56: Other: Cash Flow Control | N56: 700 | O56: 2100 | P56: 1. Data input analysis and legal confirmation by Exporter
L57: SERVICE STAFF | P57: and Fin. modeling developer | R57: 12000
K58: 4 | L58: Designer (architects) | N58: 1500 | O58: 6000 | P58: 2. Bus Plan, Fin. Modeling | R58: 140000
K59: 2 | L59: Engineers in production | N59: 1500 | O59: 3000 | P59: 3. Software usage fee for OCFCS | R59: 18000
K60: 2 | L60: Technological engineers | N60: 2000 | O60: 4000 | P60: 4 .Risk Assessment - software | R60: 47000
K61: 20 | L61: Production workers | N61: 800 | O61: 16000 | P61: Sub TOTAL: | R61: =R57+R58+R59+R60 -> 217000 | S61: Other: | T61: Go to
K62: 20 | L62: Construction workers | N62: 1000 | O62: 20000 | P62: Constructive permits, - electricity, water, etc. | S62: 15000 | T62: Level
B63: Аn innovation process – energy application: NEW SOLAR ROOF – energy application: NEW SOLAR ROOF | K63: =K52+K53+K54+K55+K56+K58+K59+K60+K61+K62 -> 56 | L63: TOTAL number of emploees | O63: =O52+O53+O54+O55+O56+O58+O59+O60+O61+O62 -> 61100 | P63: Infrastructure - hedge, water & power supply | S63: 35000 | T63: â
K64: Financial crises and real estate | N64: 0.3 | P64: Others - land, video control, training, etc. | S64: 10000
K65: Closed old / Registral new Project Company | P65: ① TOTAL: | R65: =R54+S51+R61+S62+S63+S64 -> 1950225 | S65: Local
H66: RIPING d.o.o. was family company engaged in the production and installation of steel structures. | P66: Equipment Imp. ↓ | R66: =G48 -> 8355580 | S66: Country
A67: The color visualizations used in all worksheets are intended for faster and easier perception of figures and formulas, as well as for their long-term memorization in the financing of the project and its management. | S67: Expences
G68: 88 | H68: COSTS of heating with photovoltaic modules | L68: 90 | M68: Generation | N68: 0.3 | O68: $/Mo | P68: Current Ratio | S68: =R65/R66 -> 0.2334039049
A69: Spain yiels T + C: | B69: Average price ↓ in Holland | H69: Tpansport → | I69: → | J69: 20 | K69: 350 | L69: =K69/J69/1000 -> 0.0175 | M69: .+ Transport | N69: This project | O69: =N72/1 -> 0
A70: Kg | B70: Kg/m2 | C70: € /kg | H70: Panels → | I70: ↓Mo | J70: p.Yr | K70: =L68/100 -> 0.9 | L70: Price p.Mo | M70: $/Mo | N70: $ p.↓Mo | O70: =N73/1 -> 0
A71: 264768 | B71: =A71/$A$91 ->  | C71: 1.21 | I71: 557463 | J71: =I71/1 -> 557463 | K71: =J71*$K$70*(1+$N$68) -> 652231.71 | L71: =K71*$L$69 -> 11414.05493 | M71: =K71+L71 -> 663645.7649 | N71: =M71*$T$48 -> 0 | O71: =N74/1 -> 0
A72: 728112 | B72: =A72/$A$91 ->  | C72: 2.83 | I72: 523149 | J72: 523149 | K72: =J72*$K$70*(1+$N$68) -> 612084.33 | L72: =K72*$L$69 -> 10711.47578 | M72: =K72+L72 -> 622795.8058 | N72: =M72*$T$48 -> 0 | O72: =N75/1 -> 0
A73: 1125264 | C73: 1.85 | I73: 444513 | J73: 444513 | K73: =J73*$K$70*(1+$N$68) -> 520080.21 | L73: 9101.403675 | M73: 529181.6137 | N73: 0 | O73: =N74/1 -> 0
A74: 1191456 | C74: 1.33 | I74: 340047 | J74: 340047 | K74: =J74*$K$70 -> 306042.3 | L74: 5355.74025 | M74: 311398.0402 | N74: 0 | O74: 0
A75: 1059072 | C75: 1.01 | I75: 156019 | J75: 156019 | K75: =J75*$K$70*(1+$N$68/1.5) -> 168500.52 | L75: 2948.7591 | M75: 171449.2791 | N75: 0 | O75: 0
A76: 0 | B76: =A76/$A$91 ->  | C76: 0.63 | I76: 0 | J76: 0 | K76: =J76*$K$70*(1+$N$68) -> 0 | L76: 0 | M76: 0 | N76: 0 | O76: 0
A77: 369152 | C77: 0.53 | I77: 0 | J77: 0 | K77: =J77*$K$70*(1+$N$68) -> 0 | L77: 0 | M77: 0 | N77: 0 | O77: 0
A78: 595728 | C78: 0.51 | I78: 0 | J78: 0 | K78: =J78*$K$70*(1+$N$68) -> 0 | L78: 0 | M78: 0 | N78: 0 | O78: 0
A79: 728112 | C79: 0.63 | I79: 0 | J79: 0 | K79: =J79*$K$70*(1+$N$68) -> 0 | L79: 0 | M79: 0 | N79: 0 | O79: 0
A80: 369152 | C80: 1.01 | I80: 261574 | J80: 261574 | K80: =J80*$K$70*(1+$N$68/3) -> 258958.26 | L80: 4531.76955 | M80: =1+L80 -> 4532.76955 | N80: 0 | O80: 0
A81: 132384 | C81: 0.95 | I81: 392361 | J81: 392361 | K81: =J81*$K$70*(1+$N$68) -> 459062.37 | L81: 8033.591475 | M81: =K81+L81 -> 467095.9615 | N81: 0 | O81: 0
A82: 264768 | C82: 1.26 | I82: 392361 | J82: 392361 | K82: =J82*$K$70*(1+$N$68) -> 459062.37 | L82: 8033.591475 | M82: =K82+L82 -> 467095.9615 | N82: 0 | O82: 0
A83: =SUM(A71:A82) -> 6827968 | B83: =SUM(B71:B82) ->  | C83: ↙ OFFERS ↘ | I83: 444676 | J83: =SUM(J71:J82) -> 3067487 | K83: =SUM(K70:K82) -> 3436022.97 | L83: =SUM(L71:L82) -> 60130.38623 | M83: =SUM(M71:M82) -> 3237195.196 | N83: =SUM(N71:N82) -> 0 | O83: =SUM(O69:O81) -> 0 | P83: Days: | R83: 112 | S83: 40 | T83: 35 | U83: 33
A84: USA | C84: USA ②
A85: =364.8*160 -> 58368
A86: 70080
A87: =2*9.6*120+1*9.6*170 -> 3936
A88: =L34 -> 8640
A89: =20*135 -> 2700 | C89: 3744
A90: =10*225.5 -> 2255 | C90: 2496
A91: =#REF!*10000 ->  | C91: =SUM(C85:C90) -> 6240
A92: 2286699 | C92: 478922
A93: 6800
A94: 42000
A95: 50000
B96: Rent of a plot for a photovoltaic plant
C97: =SUM(A93:A95)+C92 -> 577722

Sheet Cap.Goods
B3: ↑ | C3: Level ① | E3: Capital Goods and Services | I3: Capital Goods and Services - Current data - during the loan
B4: To Level 0 | H4: Level X
B5: A | D5: CAPITAL INVESTMENT EXPORT / IMPORT | F5: Loan "A" | G5: D | H5: Date
B6: =IF(#REF!<=50%,"","M") ->  | G6: =IF(#REF!<=50%,"","M") -> 
D7: Building Machines for self-supporting facilities (DDP) production of self-supporting facilities production of self-supporting facilities, DDP | F7: =Intro!G43 -> 5125000
D8: Construction materials (for 3 Mo) | F8: =Intro!F41 -> 1956000
C9: Startup support | E9: TOTAL: | F9: =Intro!G46 -> 7081000
C10: =Intro!F46 -> 0.18 | D10: Job training - disassembly and assembly of machines: | F10: =Intro!F45 -> 1274580
E11: TOTAL: | F11: =Intro!G48 -> 8355580
C12: Next stage of the PROJECT development is SOLAR ENERGY GENERATION | F12: =Intro!H48 -> Solar Energy
B14: B | D14: LOCAL COUNTRY COSTS  | F14: Loan "B" | G14: D
C15: Advance, % | F15: Net Price
C16: 2.5% Duty: | D16: Import Duty - Building Machines: | F16: =Intro!R51 -> 177025
A17: Ø | D17: Local country customs transport and storage: | F17: =Intro!S52 -> 30000
A18: Ø | D18: Local administration - Permits & Reconstruction: | F18: =Intro!S53 -> 50000
E19: Sub TOTAL: | F19: =Intro!R54 -> 257025
C20: 20% VAT: | D20: (Refundable) | F20: =Intro!S51 -> 1416200
C21: Cap. Investment: | D21: Constructive drawings, permits - electricity, water, etc. | F21: =Intro!S62 -> 15000
D22: Terrain, infrastructure - hedge, water & power supply | F22: =Intro!S63 -> 35000
D23: Other unforeseen expenses - land, video control, etc. | F23: =Intro!S64 -> 10000
E24: Sub TOTAL: | F24: =F21+F22+F23 -> 60000
C25: Other: | D25: Loan application
C26: Fin. modeling: | D26: 1. All data input analysis and legal confirmation | F26: =Intro!R57 -> 12000
D27: 2. Business Plan, Financial modeling | F27: =Intro!R58 -> 140000
D28: 3. Software usage fee for OCFCS and sensitivity analysis | F28: =Intro!R59 -> 18000
A29: Ø | D29: 4. Financial risk assessment and management | F29: =Intro!R60 -> 47000
C30: Local costs < 30% | E30: Sub TOTAL: | F30: =Intro!R61 -> 217000
C31: =IF(F32<=30%,"C","N") -> C | E31: TOTAL: | F31: =Intro!R65 -> 1950225
E32: Local Country Expences: | F32: =Intro!S68 -> 0.2334039049
C33: Local costs should not exceed 30% of the loan amount. | F33: =F19+F20+F24+F30 -> 1950225
F35: =Intro!S68 -> 0.2334039049 | G35: D
D37: INSURANCE | E37: DEPRECIATION OF ASSETS
A38: Ø | C38: 0.16 | D38: =F7 -> 5125000 | E38: Mashines / Annual profit tax reduction: | F38: =D38*C38 -> 820000
C39: 0.25 | D39: Motor car / Truck(s)
C40: 0.0419 | D40: LOAN INTEREST RATE
C41: Cell → Data entered from external sources
A42: Ø | C42: Cell → These - characters are on base data and are links to Level 1 | D42: characters are on base data and are links to Level 1
A43: Ø | D43: This icons or are for Internet sources
A44: Ø | C44: Various fonts | D44: and background colors represent similar group data resources
H45: Next action

Sheet BUDGET
A1: Business Plan | C1: 1yr Sales: | D1: 2023-01-31 | E1: 2023-02-28 | F1: 2023-03-31 | G1: 2023-04-30 | H1: 2023-05-31 | I1: 2023-06-30 | J1: 2023-07-31 | K1: August | L1: 2023-09-30 | M1: 2023-10-31 | N1: 2023-11-30 | O1: 2023-12-31 | P1: $ TOTAL | Q1: 6 Mo: Jan - Jun | R1: 6 Mo: Jul - Dec | S1: Yrs
A2: Level 1 | B2: ß Homes: | C2: Homes p.Mo | D2: =Intro!L34/3*Intro!R34 -> 403200 | E2: =Intro!L34/3*Intro!R34 -> 403200 | F2: =Intro!L34/3*Intro!R34 -> 403200 | G2: =Intro!K34*Intro!R34 -> 504000 | H2: =Intro!K34*Intro!R34 -> 504000 | I2: =Intro!K34*Intro!R34 -> 504000 | J2: =Intro!K34*Intro!R34 -> 504000 | K2: 0 | L2: =Intro!K34*Intro!R34 -> 504000 | M2: =Intro!P34/3*Intro!R34 -> 453600 | N2: =Intro!P34/3*Intro!R34 -> 453600 | O2: =Intro!P34/3*Intro!R34 -> 453600 | P2: =SUM(D2:O2) -> 5090400 | Q2: =SUM(D2:I2) -> 2721600 | R2: =SUM(J2:O2) -> 2368800 | S2: 1
A3: ← Back | B3: Halls: | C3: Halls p.Mo | D3: =Intro!L35/3*Intro!R35 -> 768000 | E3: =Intro!L35/3*Intro!R35 -> 768000 | F3: =Intro!L35/3*Intro!R35 -> 768000 | G3: =Intro!K35*Intro!R35 -> 960000 | H3: =Intro!K35*Intro!R35 -> 960000 | I3: =Intro!K35*Intro!R35 -> 960000 | J3: =Intro!K35*Intro!R35 -> 960000 | K3: 0 | L3: =Intro!K35*Intro!R35 -> 960000 | M3: =Intro!K35*Intro!R35 -> 960000 | N3: =Intro!K35*Intro!R35 -> 960000 | O3: =Intro!P35/3*Intro!R35 -> 864000 | P3: =SUM(D3:O3) -> 9888000 | Q3: =SUM(D3:I3) -> 5184000 | R3: =SUM(J3:O3) -> 4704000 | S3: 2
A4: Revenue → → Income - Sales: | C4: Total: | D4: =D2+D3 -> 1171200 | E4: =E2+E3 -> 1171200 | F4: =F2+F3 -> 1171200 | G4: =G2+G3 -> 1464000 | H4: =H2+H3 -> 1464000 | I4: =I2+I3 -> 1464000 | J4: =I2+J3 -> 1464000 | K4: 0 | L4: 1464000 | M4: =M2+M3 -> 1413600 | N4: 1413600 | O4: 1317600 | P4: =SUM(D4:O4) -> 14978400 | Q4: =Q2+Q3 -> 7905600 | R4: =R2+R3 -> 7072800 | S4: 3
B5: BASE DATA: | C5: 1yr Costs: | D5: (Materials only) | Q5: 6 Mo: Jan - Jun | R5: 6 Mo: Jul - Dec
B6: Homes: | C6: Homes p.Mo | D6: =Intro!K39*Intro!R39-Intro!K39*Intro!R39*20% -> 201600 | E6: =Intro!K39*Intro!R39-Intro!K39*Intro!R39*20% -> 201600 | F6: =Intro!K39*Intro!R39-Intro!K39*Intro!R39*20% -> 201600 | G6: =Intro!K39*Intro!R39 -> 252000 | H6: =Intro!K39*Intro!R39 -> 252000 | I6: =Intro!K39*Intro!R39 -> 252000 | J6: =Intro!K39*Intro!R39 -> 252000 | K6: 0 | L6: =Intro!K39*Intro!R39 -> 252000 | M6: =Intro!K39*Intro!R39 -> 252000 | N6: =Intro!K39*Intro!R39 -> 252000 | O6: =Intro!K39*Intro!R39 -> 252000 | P6: =SUM(D6:O6) -> 2620800 | Q6: =SUM(D6:I6) -> 1360800 | R6: =SUM(J6:O6) -> 1260000 | S6: 4
A7: Level ② | B7: Halls: | C7: Halls p.Mo | D7: =Intro!K41*Intro!R39-Intro!K41*Intro!R39*20% -> 448000 | E7: =Intro!K41*Intro!R39-Intro!K41*Intro!R39*20% -> 448000 | F7: =Intro!K41*Intro!R39-Intro!K41*Intro!R39*20% -> 448000 | G7: =Intro!K41*Intro!R39 -> 560000 | H7: =Intro!K41*Intro!R39 -> 560000 | I7: =Intro!K41*Intro!R39 -> 560000 | J7: =Intro!K41*Intro!R39 -> 560000 | K7: 0 | L7: =Intro!K41*Intro!R39 -> 560000 | M7: =Intro!K41*Intro!R39 -> 560000 | N7: =Intro!K41*Intro!R39 -> 560000 | O7: =Intro!K41*Intro!R39 -> 560000 | P7: =SUM(D7:O7) -> 5824000 | Q7: =SUM(D7:I7) -> 3024000 | R7: =SUM(J7:O7) -> 2800000 | S7: 5
B8: Costs - Materials: | C8: Total: | D8: =D6+D7 -> 649600 | E8: =E6+E7 -> 649600 | F8: =F6+F7 -> 649600 | G8: 812000 | H8: 812000 | I8: 812000 | J8: 812000 | K8: 0 | L8: =L6+L7 -> 812000 | M8: 812000 | N8: 812000 | O8: 812000 | P8: =SUM(D8:O8) -> 8444800 | Q8: =SUM(Q6:Q7) -> 4384800 | R8: =SUM(R6:R7) -> 4060000 | S8: 6
A9: From Level 1 Repayment periods | C9: Nr of Periods | D9: 1 | E9: =D9+1 -> 2 | F9: 3 | G9: 4 | H9: 5 | I9: 6 | J9: 7 | K9: 8 | L9: 9 | M9: 10 | N9: 11 | O9: 12 | P9: 13 | Q9: 14 | R9: =Q9+1 -> 15
A10: =Intro!S51 -> 1416200 | B10:  VAT of Loan's Costs ↔ Return
A11: =Intro!R51 -> 177025 | B11: Import DUTY of cap. goods
A12: =Intro!S54 -> 80000 | B12: Operations + administration fees
A13: =SUM(A10:A12) -> 1673225 | B13: Startup capital Investment | D13: StartUp | E13: 1st Year | G13: 2nd Year | I13: 3rd Year | K13: 4rd Year | M13: 5th Year | O13: 6th Year | Q13: 1/2 of 7th Year
A14: =Intro!G48 -> 8355580 | B14: Database for project development | C14: Date: | D14: 2022-12-31 | E14: 2023-06-30 | F14: 2023-12-31 | G14: 2024-06-30 | H14: 2024-12-31 | I14: 2025-06-30 | J14: 2025-12-31 | K14: 2026-06-30 | L14: 2026-12-31 | M14: 2027-06-30 | N14: 2027-12-31 | O14: 2028-06-30 | P14: 2028-12-31 | Q14: 2029-06-30
A15: Sales: | B15: Whole 7 Yr loan period Revenue | C15: =SUM(D15:Q15) -> 94869600 | D15: =D32 -> 1317600 | E15: =E32 -> 7905600 | F15: =F32 -> 7072800 | G15: =G32 -> 7905600 | H15: 7072800 | I15: 7905600 | J15: 7072800 | K15: 7905600 | L15: =L32 -> 7072800 | M15: 7905600 | N15: 7072800 | O15: 7905600 | P15: 7072800 | Q15: 3681600
A16: Costs: | B16: of Goods Sold (COGS) TOTAL: | C16: =SUM(D16:Q16) -> 40699841.98 | D16: =D8+SUM(D17:D19) -> 3982879.9 | E16: =E8+SUM(E17:E19) -> 1126900 | F16: =F8+SUM(F17:F19) -> 887049.401 | G16: =G8+SUM(G17:G19) -> 1294249.1 | H16: 3162044.266 | I16: 1299265.013 | J16: 3152391.039 | K16: 470348.6405 | L16: 3121420.164 | M16: 1287500.897 | N16: 3113106.801 | O16: 1292722.709 | P16: 10738227.2 | Q16: 5771736.843
B17: Variable costs TOTAL: | C17: =SUM(D17:Q17) -> 584600 | D17: =D46 -> 7400 | E17: =E46 -> 44400 | F17: 44400 | G17: 44400 | H17: 44400 | I17: 44400 | J17: 44400 | K17: 44400 | L17: 44400 | M17: 44400 | N17: 44400 | O17: 44400 | P17: 44400 | Q17: 44400
B18: Fixed costs | C18: =SUM(D18:Q18) -> 8529892.736 | D18: =D52 -> 3296705 | E18: =E52 -> 432900 | F18: 18000 | G18: 437849.1 | H18: 436349.1 | I18: =I52 -> 442865.0128 | J18: 441365.0128 | K18: 425948.6405 | L18: 424448.6405 | M18: 431100.8972 | N18: 429600.8972 | O18: 436322.7093 | P18: 434822.7093 | Q18: 441615.0159
B19: Investment Loan Installments | C19: =C63 -> 10485998.64 | D19: =D63 -> 29174.90017 | F19: =F63 -> 175049.401 | H19: =H63 -> 1869295.166 | J19: =J63 -> 1854626.026 | L19: =L63 -> 1840571.523 | N19: =N63 -> 1827105.904 | P19: =P63 -> 1814204.494 | Q19: =Q63 -> 900921.8267
A20: Costs: | B20: Capital investment TOTAL: | C20: =SUM(D20:Q20) -> 50806566.91 | D20: =D16 -> 3982879.9 | E20: =E16 -> 1126900 | F20: =F16 -> 887049.401 | G20: =G16+G19 -> 1294249.1 | H20: 5031339.431 | I20: 1299265.013 | J20: 5007017.065 | K20: 470348.6405 | L20: 4961991.686 | M20: 1287500.897 | N20: 4940212.705 | O20: =O16+O19 -> 1292722.709 | P20: =P16+P19 -> 12552431.7 | Q20: =Q16+Q19 -> 6672658.669
